[Event "New Zealand Rapid Championship"]
[Site "Wellington"]
[Date "2023.01.11"]
[Round "2.10"]
[White "Malcolm, Leo"]
[Black "Cummings, Nick"]
[Result "0-1"]
[TimeControl "25+5"]
[WhiteFideId "4317408"]
[BlackFideId "4301218"]
[WhiteElo "1801"]
[BlackElo "2038"]

1. e4 {[%clk 00:25:09]} c6 {[%clk 00:25:09]} {[%emt 00:00:02]} 2. Bc4 {[%clk
00:25:09]} {[%emt 00:00:05]} d5 {[%clk 00:25:10]} {[%emt 00:00:05]} 3. Bb3
{[%clk 00:25:12]} {[%emt 00:00:02]} e6 {[%clk 00:24:03]} {[%emt 00:01:12]} 4.
d4 {[%clk 00:25:11]} {[%emt 00:00:05]} dxe4 {[%clk 00:23:47]} {[%emt 00:00:22]}
5. f3 {[%clk 00:25:12]} {[%emt 00:00:05]} exf3 {[%clk 00:23:36]} {[%emt
00:00:15]} 6. Nxf3 {[%clk 00:25:13]} {[%emt 00:00:04]} Nf6 {[%clk 00:23:39]}
{[%emt 00:00:02]} 7. O-O {[%clk 00:25:05]} {[%emt 00:00:12]} Be7 {[%clk
00:23:16]} {[%emt 00:00:28]} 8. Nbd2 {[%clk 00:24:32]} {[%emt 00:00:38]} c5
{[%clk 00:22:17]} {[%emt 00:01:05]} 9. c3 {[%clk 00:24:05]} {[%emt 00:00:32]}
cxd4 {[%clk 00:21:55]} {[%emt 00:00:27]} 10. cxd4 {[%clk 00:23:46]} {[%emt
00:00:25]} Nbd7 {[%clk 00:20:28]} {[%emt 00:01:31]} 11. Qe1 {[%clk 00:23:09]}
{[%emt 00:00:42]} Nb6 {[%clk 00:20:28]} {[%emt 00:00:04]} 12. Nc4 {[%clk
00:22:18]} {[%emt 00:00:55]} Nxc4 {[%clk 00:20:16]} {[%emt 00:00:18]} 13. Bxc4
{[%clk 00:22:22]} {[%emt 00:00:02]} Bd7 {[%clk 00:19:31]} {[%emt 00:00:49]} 14.
Ne5 {[%clk 00:21:34]} {[%emt 00:00:54]} Rc8 {[%clk 00:17:24]} {[%emt 00:02:12]}
15. Bg5 {[%clk 00:20:35]} {[%emt 00:01:04]} O-O {[%clk 00:14:39]} {[%emt
00:02:50]} 16. Qh4 {[%clk 00:19:51]} {[%emt 00:00:49]} Nd5 {[%clk 00:13:25]}
{[%emt 00:01:19]} 17. Bxe7 {[%clk 00:19:10]} {[%emt 00:00:46]} Nxe7 {[%clk
00:13:25]} {[%emt 00:00:05]} 18. Rf3 {[%clk 00:17:08]} {[%emt 00:02:07]} Ng6
{[%clk 00:11:27]} {[%emt 00:02:02]} 19. Nxg6 {[%clk 00:16:29]} {[%emt
00:00:44]} Qxh4 {[%clk 00:10:45]} {[%emt 00:00:45]} 20. Nxh4 {[%clk 00:16:31]}
{[%emt 00:00:05]} Rxc4 {[%clk 00:10:48]} {[%emt 00:00:02]} 21. Rd3 {[%clk
00:16:08]} {[%emt 00:00:28]} Bc6 {[%clk 00:10:35]} {[%emt 00:00:18]} 22. Rad1
{[%clk 00:15:39]} {[%emt 00:00:34]} Rd8 {[%clk 00:10:29]} {[%emt 00:00:12]} 23.
b3 {[%clk 00:15:24]} {[%emt 00:00:20]} Rc2 {[%clk 00:10:29]} {[%emt 00:00:04]}
24. R1d2 {[%clk 00:15:25]} {[%emt 00:00:05]} Rxd2 {[%clk 00:10:20]} {[%emt
00:00:14]} 25. Rxd2 {[%clk 00:15:28]} {[%emt 00:00:01]} Kf8 {[%clk 00:09:03]}
{[%emt 00:01:22]} 26. Kf2 {[%clk 00:15:17]} {[%emt 00:00:16]} e5 {[%clk
00:08:17]} {[%emt 00:00:52]} 27. Nf3 {[%clk 00:14:05]} {[%emt 00:01:16]} Bxf3
{[%clk 00:08:09]} {[%emt 00:00:12]} 28. Kxf3 {[%clk 00:14:04]} {[%emt
00:00:06]} Rxd4 {[%clk 00:07:58]} {[%emt 00:00:15]} 29. Rc2 {[%clk 00:14:05]}
{[%emt 00:00:05]} Rd7 {[%clk 00:07:56]} {[%emt 00:00:06]} 30. b4 {[%clk
00:14:04]} {[%emt 00:00:08]} f6 {[%clk 00:07:50]} {[%emt 00:00:10]} 31. a4
{[%clk 00:14:05]} {[%emt 00:00:05]} Ke7 {[%clk 00:07:39]} {[%emt 00:00:14]} 32.
b5 {[%clk 00:14:08]} {[%emt 00:00:03]} Kd8 {[%clk 00:07:30]} {[%emt 00:00:12]}
33. a5 {[%clk 00:14:11]} {[%emt 00:00:04]} Rd5 {[%clk 00:07:11]} {[%emt
00:00:23]} 34. b6 {[%clk 00:14:13]} {[%emt 00:00:04]} Rxa5 {[%clk 00:06:36]}
{[%emt 00:00:40]} 35. Rc7 {[%clk 00:14:16]} {[%emt 00:00:03]} axb6 {[%clk
00:06:24]} {[%emt 00:00:16]} 36. Rxb7 {[%clk 00:14:18]} {[%emt 00:00:02]} Rb5
{[%clk 00:06:11]} {[%emt 00:00:19]} 37. Kg4 {[%clk 00:14:16]} {[%emt 00:00:07]}
e4 {[%clk 00:06:02]} {[%emt 00:00:13]} 38. h3 {[%clk 00:13:45]} {[%emt
00:00:37]} Re5 {[%clk 00:04:59]} {[%emt 00:01:07]} 39. g3 {[%clk 00:13:12]}
{[%emt 00:00:39]} e3 {[%clk 00:04:57]} {[%emt 00:00:06]} 40. Ra7 {[%clk
00:12:53]} {[%emt 00:00:24]} e2 {[%clk 00:04:55]} {[%emt 00:00:06]} 41. Kh4
{[%clk 00:12:54]} {[%emt 00:00:03]} e1=Q {[%clk 00:04:35]} {[%emt 00:00:26]} 42.
Ra8+ {[%clk 00:12:56]} {[%emt 00:00:04]} Kc7 {[%clk 00:04:35]} {[%emt
00:00:03]} 43. Ra7+ {[%clk 00:12:58]} {[%emt 00:00:04]} Kb8 {[%clk 00:04:38]}
{[%emt 00:00:02]} 44. Ra4 {[%clk 00:13:02]} {[%emt 00:00:04]} Re4+ {[%clk
00:04:18]} {[%emt 00:00:23]} 45. Rxe4 {[%clk 00:13:05]} Qxe4+ {[%clk 00:04:18]}
46. g4 {[%clk 00:13:07]} {[%emt 00:00:07]} g5+ {[%clk 00:04:20]} {[%emt
00:00:07]} 47. Kh5 {[%clk 00:13:10]} {[%emt 00:00:02]} Qg6# {[%clk 00:04:22]}
{[%emt 00:00:02]} 0-1

[Event "New Zealand Rapid Championship"]
[Site "Wellington"]
[Date "2023.01.11"]
[Round "2.11"]
[White "Van Der Krogt, Adrian"]
[Black "Burns, Christopher J"]
[Result "0-1"]
[TimeControl "25+5"]
[WhiteFideId "4319567"]
[BlackFideId "4300920"]
[WhiteElo "1133"]
[BlackElo "2031"]

1. e4 {[%clk 00:25:05]} {[%emt 00:00:05]} e5 {[%clk 00:24:52]} {[%emt
00:00:19]} 2. Nf3 {[%clk 00:25:06]} {[%emt 00:00:03]} Nc6 {[%clk 00:24:56]}
{[%emt 00:00:02]} 3. d4 {[%clk 00:24:21]} {[%emt 00:00:49]} exd4 {[%clk
00:24:48]} {[%emt 00:00:12]} 4. Bc4 {[%clk 00:24:03]} {[%emt 00:00:24]} Nf6
{[%clk 00:24:29]} {[%emt 00:00:23]} 5. O-O {[%clk 00:20:58]} {[%emt 00:03:09]}
Nxe4 {[%emt 00:02:40]} 6. Re1 {[%clk 00:18:40]} {[%emt 00:00:06]} d5 {[%emt
00:00:50]} 7. Bd3 {[%emt 00:01:27]} Be7 {[%emt 00:00:29]} 8. Bxe4 {[%clk
00:17:30]} {[%emt 00:00:08]} dxe4 {[%clk 00:22:49]} {[%emt 00:00:02]} 9. Rxe4
{[%clk 00:17:34]} {[%emt 00:00:02]} O-O {[%clk 00:21:32]} {[%emt 00:01:22]} 10.
c3 {[%clk 00:08:08]} {[%emt 00:09:31]} dxc3 {[%clk 00:21:19]} {[%emt 00:00:19]}
11. Qxd8 {[%clk 00:06:31]} {[%emt 00:01:41]} Rxd8 {[%clk 00:21:10]} {[%emt
00:00:14]} 12. Nxc3 {[%clk 00:06:34]} {[%emt 00:00:02]} Be6 {[%clk 00:19:12]}
{[%emt 00:02:03]} 13. Bf4 {[%clk 00:05:21]} {[%emt 00:01:18]} Rd7 {[%clk
00:17:50]} {[%emt 00:01:27]} 14. a3 {[%clk 00:04:27]} {[%emt 00:01:00]} h6
{[%clk 00:17:45]} {[%emt 00:00:09]} 15. Ree1 {[%clk 00:02:30]} {[%emt
00:02:02]} Rad8 {[%clk 00:16:28]} {[%emt 00:01:23]} 16. h3 {[%clk 00:02:32]}
{[%emt 00:00:02]} a6 {[%clk 00:15:56]} {[%emt 00:00:38]} 17. Rac1 {[%clk
00:02:34]} {[%emt 00:00:05]} Bf6 {[%clk 00:15:23]} {[%emt 00:00:36]} 18. b4
{[%clk 00:01:10]} {[%emt 00:01:29]} Nd4 {[%clk 00:13:17]} {[%emt 00:02:11]} 19.
Nd2 {[%clk 00:00:27]} {[%emt 00:00:50]} c6 {[%clk 00:11:21]} {[%emt 00:01:59]}
20. Nde4 {[%clk 00:00:23]} {[%emt 00:00:08]} Be7 {[%clk 00:11:05]} {[%emt
00:00:21]} 21. Na4 {[%clk 00:00:27]} {[%emt 00:00:02]} Nb3 {[%emt 00:02:03]} 22.
Rc3 {[%clk 00:00:30]} Rd4 {[%clk 00:08:36]} {[%emt 00:00:37]} 23. Bc7 {[%clk
00:00:22]} {[%emt 00:00:14]} R8d7 {[%clk 00:08:31]} {[%emt 00:00:10]} 24. Bb6
{[%clk 00:00:26]} {[%emt 00:00:03]} Rd1 {[%clk 00:06:44]} {[%emt 00:01:51]} 25.
Kf1 {[%clk 00:00:30]} {[%emt 00:00:01]} f5 {[%clk 00:05:54]} {[%emt 00:00:55]}
26. Nec5 {[%clk 00:00:08]} {[%emt 00:00:26]} Bxc5 {[%clk 00:05:57]} {[%emt
00:00:08]} 27. Nxc5 {[%clk 00:00:06]} {[%emt 00:00:02]} Nxc5 {[%clk 00:03:06]}
{[%emt 00:02:56]} 28. Bxc5 {[%clk 00:00:10]} {[%emt 00:00:01]} Rxe1+ {[%clk
00:02:40]} {[%emt 00:00:31]} 29. Kxe1 {[%clk 00:00:14]} Bd5 {[%clk 00:02:31]}
{[%emt 00:00:14]} 30. Re3 {[%clk 00:00:17]} {[%emt 00:00:02]} Bxg2 {[%clk
00:02:24]} {[%emt 00:00:12]} 31. h4 {[%clk 00:00:20]} {[%emt 00:00:02]} Kf7
{[%clk 00:01:46]} {[%emt 00:00:44]} 32. Ke2 {[%clk 00:00:24]} Be4 {[%clk
00:01:42]} {[%emt 00:00:09]} 33. a4 {[%clk 00:00:27]} {[%emt 00:00:02]} Rd5
{[%clk 00:01:38]} {[%emt 00:00:09]} 34. a5 {[%clk 00:00:32]} Kf6 {[%clk
00:00:40]} {[%emt 00:00:39]} 0-1

[Event "New Zealand Rapid Championship"]
[Site "Wellington"]
[Date "2023.01.11"]
[Round "2.12"]
[White "Nyberg, Michael"]
[Black "Zhang, Franklyn"]
[Result "1-0"]
[TimeControl "25+5"]
[WhiteFideId "4301064"]
[BlackFideId "4311051"]
[WhiteElo "1951"]
[BlackElo "648"]

1. e4 {[%clk 00:24:57]} {[%emt 00:00:12]} e5 {[%clk 00:25:07]} {[%emt
00:00:03]} 2. Nf3 {[%clk 00:24:55]} {[%emt 00:00:07]} Nc6 {[%clk 00:25:10]}
{[%emt 00:00:03]} 3. Bc4 {[%clk 00:24:49]} {[%emt 00:00:10]} Bc5 {[%clk
00:25:06]} {[%emt 00:00:09]} 4. c3 {[%clk 00:24:41]} {[%emt 00:00:13]} Nf6
{[%clk 00:24:59]} {[%emt 00:00:12]} 5. d3 {[%clk 00:24:34]} {[%emt 00:00:11]}
d6 {[%clk 00:24:43]} {[%emt 00:00:21]} 6. h3 {[%clk 00:24:18]} {[%emt
00:00:21]} h6 {[%clk 00:24:39]} {[%emt 00:00:10]} 7. Nbd2 {[%clk 00:23:43]}
{[%emt 00:00:39]} Be6 {[%clk 00:23:47]} {[%emt 00:00:58]} 8. b4 {[%clk
00:23:33]} {[%emt 00:00:16]} Bb6 {[%clk 00:23:17]} {[%emt 00:00:36]} 9. a4
{[%clk 00:23:29]} {[%emt 00:00:08]} a6 {[%clk 00:22:54]} {[%emt 00:00:29]} 10.
Qb3 {[%clk 00:22:21]} {[%emt 00:01:12]} d5 {[%clk 00:22:15]} {[%emt 00:00:44]}
11. exd5 {[%clk 00:21:57]} {[%emt 00:00:29]} Bxd5 {[%clk 00:22:09]} {[%emt
00:00:11]} 12. O-O {[%clk 00:21:28]} {[%emt 00:00:35]} O-O {[%clk 00:21:41]}
{[%emt 00:00:32]} 13. Qc2 {[%clk 00:20:51]} {[%emt 00:00:42]} Re8 {[%clk
00:20:46]} {[%emt 00:01:00]} 14. Bb2 {[%clk 00:20:14]} {[%emt 00:00:44]} Bxf3
{[%clk 00:18:54]} {[%emt 00:01:56]} 15. Nxf3 {[%clk 00:19:54]} {[%emt
00:00:24]} e4 {[%clk 00:18:12]} {[%emt 00:00:47]} 16. dxe4 {[%clk 00:19:36]}
{[%emt 00:00:24]} Nxe4 {[%clk 00:17:38]} {[%emt 00:00:45]} 17. Rad1 {[%clk
00:19:11]} {[%emt 00:00:24]} Qf6 {[%clk 00:16:42]} {[%emt 00:00:58]} 18. Bd5
{[%clk 00:18:13]} {[%emt 00:01:06]} Ng5 {[%clk 00:16:13]} {[%emt 00:00:32]} 19.
c4 {[%clk 00:17:16]} {[%emt 00:01:03]} Nxf3+ {[%clk 00:14:39]} {[%emt
00:01:39]} 20. Bxf3 {[%clk 00:17:04]} {[%emt 00:00:17]} Qg5 {[%clk 00:13:46]}
{[%emt 00:00:58]} 21. b5 {[%clk 00:15:35]} {[%emt 00:01:36]} axb5 {[%clk
00:13:20]} {[%emt 00:00:30]} 22. axb5 {[%clk 00:15:26]} {[%emt 00:00:14]} Na5
{[%clk 00:12:51]} {[%emt 00:00:34]} 23. Rd5 {[%clk 00:14:48]} {[%emt 00:00:41]}
Qf4 {[%clk 00:12:03]} {[%emt 00:00:51]} 24. Qc3 {[%clk 00:13:56]} {[%emt
00:00:59]} f6 {[%clk 00:10:54]} {[%emt 00:01:15]} 25. c5 {[%clk 00:13:38]}
{[%emt 00:00:28]} c6 {[%clk 00:09:39]} {[%emt 00:01:14]} 26. Rd7 {[%clk
00:12:39]} {[%emt 00:01:07]} Bd8 {[%clk 00:08:42]} {[%emt 00:00:58]} 27. bxc6
{[%clk 00:11:50]} {[%emt 00:00:56]} bxc6 {[%clk 00:08:22]} {[%emt 00:00:24]} 28.
Bh5 {[%clk 00:09:51]} {[%emt 00:02:02]} Rf8 {[%clk 00:07:07]} {[%emt 00:01:21]}
29. Bc1 {[%clk 00:08:36]} {[%emt 00:01:23]} Qf5 {[%clk 00:06:03]} {[%emt
00:01:06]} 30. Bg4 {[%clk 00:08:35]} {[%emt 00:00:06]} Qg6 {[%clk 00:05:29]}
{[%emt 00:00:40]} 31. Qf3 {[%clk 00:07:40]} {[%emt 00:00:58]} f5 {[%clk
00:04:26]} {[%emt 00:01:08]} 32. Bh5 {[%clk 00:07:28]} {[%emt 00:00:18]} Qe6
{[%clk 00:03:20]} {[%emt 00:01:08]} 33. Rfd1 {[%clk 00:07:19]} {[%emt
00:00:16]} Qe5 {[%clk 00:02:49]} {[%emt 00:00:37]} 34. Bf4 {[%clk 00:06:31]}
{[%emt 00:00:54]} Qb2 {[%clk 00:01:51]} {[%emt 00:01:00]} 35. Qg3 {[%clk
00:05:16]} {[%emt 00:01:21]} Nb3 {[%clk 00:01:16]} {[%emt 00:00:41]} 36. Be5
{[%clk 00:04:54]} {[%emt 00:00:49]} 1-0

[Event "New Zealand Rapid Championship"]
[Site "Wellington"]
[Date "2023.01.11"]
[Round "2.13"]
[White "Zhu, David Junyang"]
[Black "Ning, Isabelle Yixuan"]
[Result "1-0"]
[TimeControl "25+5"]
[BlackTitle "WCM"]
[WhiteFideId "4311132"]
[BlackFideId "4307763"]
[WhiteElo "1470"]
[BlackElo "1911"]

1. d4 {[%clk 00:25:08]} {[%emt 00:00:02]} Nf6 {[%clk 00:25:07]} {[%emt
00:00:04]} 2. c4 {[%clk 00:25:08]} {[%emt 00:00:04]} g6 {[%clk 00:25:08]}
{[%emt 00:00:03]} 3. g3 {[%clk 00:25:08]} {[%emt 00:00:05]} Bg7 {[%clk
00:25:08]} {[%emt 00:00:06]} 4. Bg2 {[%clk 00:25:08]} {[%emt 00:00:05]} O-O
{[%clk 00:25:06]} {[%emt 00:00:06]} 5. Nc3 {[%clk 00:25:10]} {[%emt 00:00:03]}
d6 {[%clk 00:25:05]} {[%emt 00:00:07]} 6. Nf3 {[%clk 00:25:08]} {[%emt
00:00:06]} Nbd7 {[%clk 00:24:20]} {[%emt 00:00:51]} 7. O-O {[%clk 00:25:04]}
{[%emt 00:00:07]} e5 {[%clk 00:24:17]} {[%emt 00:00:08]} 8. dxe5 {[%clk
00:24:56]} {[%emt 00:00:14]} dxe5 {[%clk 00:24:10]} {[%emt 00:00:12]} 9. Bg5
{[%clk 00:24:52]} {[%emt 00:00:09]} c6 {[%clk 00:23:10]} {[%emt 00:01:04]} 10.
e4 {[%clk 00:24:44]} {[%emt 00:00:13]} Qc7 {[%clk 00:22:35]} {[%emt 00:00:40]}
11. h3 {[%clk 00:24:40]} {[%emt 00:00:09]} Nc5 {[%clk 00:21:48]} {[%emt
00:00:52]} 12. Qc2 {[%clk 00:24:18]} {[%emt 00:00:34]} Ne6 {[%clk 00:21:01]}
{[%emt 00:00:44]} 13. Be3 {[%clk 00:24:16]} {[%emt 00:00:08]} b5 {[%clk
00:18:47]} {[%emt 00:02:19]} 14. cxb5 {[%clk 00:23:51]} {[%emt 00:00:31]} cxb5
{[%clk 00:18:44]} {[%emt 00:00:07]} 15. Rac1 {[%clk 00:23:43]} {[%emt
00:00:12]} a6 {[%clk 00:14:36]} {[%emt 00:04:13]} 16. Rfd1 {[%clk 00:23:23]}
{[%emt 00:00:25]} Bb7 {[%clk 00:14:18]} {[%emt 00:00:24]} 17. Qb1 {[%clk
00:22:56]} {[%emt 00:00:33]} Bc6 {[%clk 00:11:55]} {[%emt 00:02:27]} 18. Nd5
{[%clk 00:22:27]} {[%emt 00:00:34]} Qb7 {[%clk 00:10:21]} {[%emt 00:01:39]} 19.
Rxc6 {[%clk 00:22:16]} {[%emt 00:00:16]} Nxd5 {[%clk 00:09:37]} {[%emt
00:00:49]} 20. exd5 {[%clk 00:22:19]} {[%emt 00:00:02]} Rad8 {[%clk 00:08:53]}
{[%emt 00:00:49]} 21. Rcc1 {[%clk 00:21:48]} {[%emt 00:00:36]} Rxd5 {[%clk
00:07:55]} {[%emt 00:01:02]} 22. Nd2 {[%clk 00:21:34]} {[%emt 00:00:19]} Nd4
{[%clk 00:06:30]} {[%emt 00:01:31]} 23. Bxd4 {[%clk 00:21:33]} {[%emt
00:00:06]} exd4 {[%clk 00:06:33]} {[%emt 00:00:02]} 24. Rc5 {[%clk 00:21:01]}
{[%emt 00:00:36]} Rfd8 {[%clk 00:05:56]} {[%emt 00:00:43]} 25. Rxd5 {[%clk
00:21:01]} {[%emt 00:00:05]} Rxd5 {[%clk 00:06:00]} {[%emt 00:00:01]} 26. Qe4
{[%clk 00:20:55]} {[%emt 00:00:11]} Qc7 {[%clk 00:04:54]} {[%emt 00:01:11]} 27.
Qe8+ {[%clk 00:20:31]} {[%emt 00:00:28]} Bf8 {[%clk 00:04:57]} {[%emt
00:00:02]} 28. Bxd5 {[%clk 00:20:35]} {[%emt 00:00:01]} 1-0

[Event "New Zealand Rapid Championship"]
[Site "Wellington"]
[ePGN "0.1;DGT LiveChess/2.2.5"]
[Date "2023.01.11"]
[Round "3.1"]
[White "Suggate, Romero"]
[Black "Shoker, Samy"]
[Result "1/2-1/2"]
[TimeControl "25+5"]
[BlackTitle "GM"]
[WhiteFideId "4313534"]
[BlackFideId "627143"]
[WhiteElo "1806"]
[BlackElo "2440"]

1. e4 {[%clk 00:25:08]} {[%emt 00:00:03]} g6 {[%clk 00:25:09]} 2. d4 {[%clk
00:25:08]} {[%emt 00:00:05]} Bg7 {[%clk 00:25:13]} {[%emt 00:00:01]} 3. Be3
{[%clk 00:25:09]} {[%emt 00:00:04]} d6 {[%clk 00:25:16]} {[%emt 00:00:02]} 4.
Nc3 {[%clk 00:25:10]} {[%emt 00:00:03]} a6 {[%clk 00:25:20]} {[%emt 00:00:01]}
5. Bd3 {[%clk 00:24:10]} {[%emt 00:01:08]} Nd7 {[%clk 00:25:13]} {[%emt
00:00:11]} 6. Nce2 {[%clk 00:23:55]} {[%emt 00:00:19]} c5 {[%clk 00:24:38]}
{[%emt 00:00:40]} 7. c3 {[%clk 00:23:53]} {[%emt 00:00:07]} Ngf6 {[%clk
00:24:39]} {[%emt 00:00:04]} 8. h3 {[%clk 00:23:38]} {[%emt 00:00:19]} b5
{[%clk 00:23:54]} {[%emt 00:00:50]} 9. Ng3 {[%clk 00:22:09]} {[%emt 00:01:35]}
Bb7 {[%clk 00:23:50]} {[%emt 00:00:09]} 10. Nf3 {[%clk 00:21:44]} {[%emt
00:00:28]} h5 {[%clk 00:22:50]} {[%emt 00:01:06]} 11. Ng5 {[%clk 00:21:12]}
{[%emt 00:00:38]} h4 {[%clk 00:22:03]} {[%emt 00:00:51]} 12. Ne2 {[%clk
00:20:58]} {[%emt 00:00:23]} cxd4 {[%clk 00:18:11]} {[%emt 00:03:53]} 13. cxd4
{[%clk 00:19:59]} {[%emt 00:01:04]} e5 {[%clk 00:16:31]} {[%emt 00:01:46]} 14.
f3 {[%clk 00:13:44]} {[%emt 00:06:19]} d5 {[%clk 00:15:22]} {[%emt 00:01:15]}
15. O-O {[%clk 00:13:15]} {[%emt 00:00:34]} O-O {[%clk 00:15:24]} {[%emt
00:00:03]} 16. Qe1 {[%clk 00:12:05]} {[%emt 00:01:14]} exd4 {[%clk 00:14:14]}
{[%emt 00:01:16]} 17. Nxd4 {[%clk 00:11:51]} {[%emt 00:00:19]} Ne5 {[%clk
00:13:44]} {[%emt 00:00:35]} 18. Rd1 {[%clk 00:10:13]} {[%emt 00:01:43]} Nxd3
{[%clk 00:11:32]} {[%emt 00:02:17]} 19. Rxd3 {[%clk 00:10:15]} {[%emt
00:00:03]} dxe4 {[%clk 00:11:03]} {[%emt 00:00:34]} 20. fxe4 {[%clk 00:09:14]}
{[%emt 00:01:05]} Nh7 {[%clk 00:08:48]} {[%emt 00:02:20]} 21. Nxh7 {[%clk
00:06:48]} {[%emt 00:02:32]} Kxh7 {[%clk 00:08:42]} {[%emt 00:00:10]} 22. Nf5
{[%clk 00:06:17]} {[%emt 00:00:35]} gxf5 {[%clk 00:06:46]} {[%emt 00:02:03]} 23.
Rxd8 {[%clk 00:06:20]} {[%emt 00:00:02]} Raxd8 {[%clk 00:06:40]} {[%emt
00:00:10]} 24. Qxh4+ {[%clk 00:06:23]} {[%emt 00:00:03]} Kg8 {[%clk 00:06:44]}
{[%emt 00:00:01]} 25. exf5 {[%clk 00:05:25]} {[%emt 00:01:04]} f6 {[%clk
00:06:32]} {[%emt 00:00:17]} 26. Bh6 {[%clk 00:05:17]} {[%emt 00:00:12]} Rf7
{[%clk 00:06:35]} {[%emt 00:00:02]} 27. Bxg7 {[%clk 00:05:14]} {[%emt
00:00:08]} Rxg7 {[%clk 00:06:38]} {[%emt 00:00:02]} 28. Rf2 {[%clk 00:05:11]}
{[%emt 00:00:09]} Rg5 {[%clk 00:04:55]} {[%emt 00:01:47]} 29. Qh6 {[%clk
00:04:23]} {[%emt 00:00:53]} Rf8 {[%clk 00:04:57]} {[%emt 00:00:03]} 30. Re2
{[%clk 00:03:22]} {[%emt 00:01:06]} Rg7 {[%clk 00:04:48]} {[%emt 00:00:14]} 31.
g4 {[%clk 00:03:17]} {[%emt 00:00:10]} Bd5 {[%clk 00:04:15]} {[%emt 00:00:38]}
32. b3 {[%clk 00:03:09]} {[%emt 00:00:13]} Bf3 {[%clk 00:02:38]} {[%emt
00:01:40]} 33. Re6 {[%clk 00:02:13]} {[%emt 00:01:03]} Rh7 {[%clk 00:02:42]} 34.
Qg6+ {[%clk 00:01:15]} {[%emt 00:01:03]} Rg7 {[%clk 00:02:46]} {[%emt
00:00:05]} 35. Qh6 {[%clk 00:01:19]} Rh7 {[%emt 00:01:05]} 1/2-1/2

[Event "New Zealand Rapid Championship"]
[Site "Wellington"]
[Date "2023.01.11"]
[Round "3.2"]
[White "Sole, Michael D"]
[Black "Hague, Ben"]
[Result "1-0"]
[TimeControl "25+5"]
[BlackTitle "FM"]
[WhiteFideId "4309030"]
[BlackFideId "405647"]
[WhiteElo "2093"]
[BlackElo "2410"]

1. e4 {[%clk 00:25:08]} {[%emt 00:00:03]} c5 {[%clk 00:25:08]} 2. Nf3 {[%clk
00:25:05]} {[%emt 00:00:08]} Nc6 {[%clk 00:25:11]} {[%emt 00:00:03]} 3. d4
{[%clk 00:25:03]} {[%emt 00:00:06]} cxd4 {[%clk 00:25:14]} {[%emt 00:00:02]} 4.
Nxd4 {[%clk 00:25:00]} {[%emt 00:00:08]} e5 {[%clk 00:25:17]} {[%emt 00:00:02]}
5. Nb5 {[%clk 00:24:54]} {[%emt 00:00:12]} d6 {[%clk 00:25:20]} {[%emt
00:00:03]} 6. c4 {[%clk 00:23:59]} {[%emt 00:00:59]} Be6 {[%clk 00:25:18]}
{[%emt 00:00:06]} 7. N1c3 {[%clk 00:23:53]} {[%emt 00:00:12]} a6 {[%clk
00:25:20]} {[%emt 00:00:03]} 8. Na3 {[%clk 00:23:52]} {[%emt 00:00:06]} g6
{[%clk 00:25:13]} {[%emt 00:00:12]} 9. Nc2 {[%clk 00:23:48]} {[%emt 00:00:11]}
Nf6 {[%clk 00:24:54]} {[%emt 00:00:23]} 10. Bd3 {[%clk 00:23:42]} {[%emt
00:00:11]} Bg7 {[%clk 00:24:55]} {[%emt 00:00:03]} 11. O-O {[%clk 00:23:29]}
{[%emt 00:00:18]} O-O {[%clk 00:24:52]} {[%emt 00:00:07]} 12. b3 {[%clk
00:23:28]} {[%emt 00:00:08]} Rc8 {[%clk 00:24:50]} {[%emt 00:00:06]} 13. Re1
{[%clk 00:22:13]} {[%emt 00:01:20]} Nd7 {[%clk 00:23:21]} {[%emt 00:01:34]} 14.
Bf1 {[%clk 00:21:49]} {[%emt 00:00:29]} b5 {[%clk 00:20:15]} {[%emt 00:03:11]}
15. Qxd6 {[%clk 00:20:50]} {[%emt 00:01:05]} Nd4 {[%clk 00:19:44]} {[%emt
00:00:36]} 16. Ne3 {[%clk 00:20:13]} {[%emt 00:00:42]} Re8 {[%clk 00:17:58]}
{[%emt 00:01:52]} 17. Ncd5 {[%clk 00:18:58]} {[%emt 00:01:19]} Bf8 {[%clk
00:09:44]} {[%emt 00:08:19]} 18. Qxa6 {[%clk 00:18:16]} {[%emt 00:00:47]} Rc6
{[%clk 00:04:05]} {[%emt 00:05:44]} 19. Qb7 {[%clk 00:17:55]} {[%emt 00:00:25]}
Nc5 {[%clk 00:03:54]} {[%emt 00:00:18]} 20. Qa7 {[%clk 00:17:01]} {[%emt
00:00:59]} Ra6 {[%clk 00:03:43]} {[%emt 00:00:16]} 21. Qc7 {[%clk 00:16:54]}
{[%emt 00:00:11]} Ncxb3 {[%clk 00:03:05]} {[%emt 00:00:44]} 22. Qxd8 {[%clk
00:16:14]} {[%emt 00:00:46]} Rxd8 {[%clk 00:03:09]} 23. cxb5 {[%clk 00:15:56]}
{[%emt 00:00:22]} Ra5 {[%clk 00:03:13]} {[%emt 00:00:02]} 24. Rb1 {[%clk
00:14:23]} {[%emt 00:01:38]} Nc5 {[%clk 00:02:40]} {[%emt 00:00:37]} 25. f3
{[%clk 00:13:00]} {[%emt 00:01:29]} Rxa2 {[%clk 00:02:33]} {[%emt 00:00:12]} 26.
Bc4 {[%clk 00:12:53]} {[%emt 00:00:12]} Ra4 {[%clk 00:02:36]} {[%emt 00:00:02]}
27. b6 {[%clk 00:12:17]} {[%emt 00:00:42]} Rb8 {[%clk 00:02:25]} {[%emt
00:00:15]} 28. Bd2 {[%clk 00:11:25]} {[%emt 00:00:57]} Bxd5 {[%clk 00:02:01]}
{[%emt 00:00:29]} 29. Bxd5 {[%clk 00:11:25]} {[%emt 00:00:05]} Nd3 {[%clk
00:01:56]} {[%emt 00:00:10]} 30. Red1 {[%clk 00:11:20]} {[%emt 00:00:09]} Bc5
{[%clk 00:01:56]} {[%emt 00:00:04]} 31. Kf1 {[%clk 00:10:36]} {[%emt 00:00:50]}
Rxb6 {[%clk 00:01:48]} {[%emt 00:00:14]} 32. Rxb6 {[%clk 00:10:37]} {[%emt
00:00:03]} Bxb6 {[%clk 00:01:52]} {[%emt 00:00:01]} 33. Nc4 {[%clk 00:10:06]}
{[%emt 00:00:37]} Bc7 {[%clk 00:01:28]} {[%emt 00:00:29]} 34. Bh6 {[%clk
00:10:08]} {[%emt 00:00:02]} Nb4 {[%clk 00:01:21]} {[%emt 00:00:12]} 35. Ne3
{[%clk 00:09:46]} {[%emt 00:00:35]} Nbc2 {[%clk 00:01:04]} {[%emt 00:00:14]} 36.
Nxc2 {[%clk 00:09:13]} {[%emt 00:00:38]} Nxc2 {[%clk 00:01:08]} 37. Bb3 {[%clk
00:09:06]} {[%emt 00:00:12]} Ra1 {[%clk 00:00:50]} {[%emt 00:00:27]} 38. Bxc2
{[%clk 00:09:09]} 1-0